fUSD/lending_fUSD_20260514
["ID","MTS","AMOUNT","RATE_DAILY","PERIOD"]
[422204183,1778691038000,-500.0,0.00014499,2]
[422204191,1778691038000,-500.0,0.00014499,2]
[422204188,1778691038000,-500.0,0.00014499,2]
[422204169,1778691038000,-341.43294704,0.00014499,2]
[422204170,1778691038000,-500.0,0.00014499,2]
[422204177,1778691038000,-500.0,0.00014499,2]
[422204176,1778691038000,-500.0,0.00014499,2]
[422204173,1778691038000,-500.0,0.00014499,2]
[422204172,1778691038000,-500.0,0.00014499,2]
[422204171,1778691038000,-500.0,0.00014499,2]
[422204175,1778691038000,-646.91952127,0.00014499,2]
[422204174,1778691038000,-500.0,0.00014499,2]
[422204168,1778691038000,-481.05073256,0.0001449,2]
[422204187,1778691038000,-500.0,0.00014499,2]
[422204167,1778691038000,-150.0,0.00014487,2]
[422204178,1778691038000,-384.60584742,0.00014499,2]
[422204189,1778691038000,-500.0,0.00014499,2]
[422204179,1778691038000,-640.39212556,0.00014499,2]
[422204190,1778691038000,-500.0,0.00014499,2]
[422204180,1778691038000,-500.0,0.00014499,2]
[422204184,1778691038000,-500.0,0.00014499,2]
[422204181,1778691038000,-537.71298597,0.00014499,2]
[422204182,1778691038000,-500.0,0.00014499,2]
[422204186,1778691038000,-500.0,0.00014499,2]
[422204185,1778691038000,-500.0,0.00014499,2]
[422204166,1778691038000,-500.0,0.00014486,2]
[422204163,1778691038000,-500.0,0.00014486,2]
[422204214,1778691040000,-259.96514647,0.000145,2]
[422204215,1778691040000,-493618.6983634,0.000145,2]
[422204312,1778691045000,-161.34,0.00013741,2]
[422204313,1778691046000,-2556.24227151,0.000145,2]
[422204315,1778691046000,-3415.29,0.000145,2]
[422204314,1778691046000,-310.546,0.000145,2]
[422204319,1778691153000,330.33,0.00027397,120]
[422204322,1778691448000,161.52,9.072e-05,2]
[422204321,1778691448000,161.52,6.872e-05,2]
[422204333,1778691926000,2182.93915177,0.0001,2]
[422204331,1778691926000,112.48601839,0.0001,2]
[422204332,1778691926000,10000.0,0.0001,2]
[422204334,1778691932000,821.92769679,9.04e-05,2]
[422204336,1778692004000,-215.17007513,0.00010699,2]
[422204369,1778692232000,-287.95,0.00013446,2]
[422204381,1778692232000,-1000.0,0.000135,4]
[422204374,1778692232000,-237.00640725,0.00013488,2]
[422204380,1778692232000,-1300.0,0.000135,4]
[422204390,1778692232000,-3000.0,0.000137,5]
[422204376,1778692232000,-150.0,0.00013488,2]
[422204365,1778692232000,-165.52,0.00013082,2]
[422204379,1778692232000,-166.63,0.00013496,2]
[422204367,1778692232000,-159.73,0.00013267,2]
[422204378,1778692232000,-150.0,0.00013488,2]
[422204385,1778692232000,-166.66,0.00013699,2]
[422204372,1778692232000,-161.52,0.00013474,2]
[422204382,1778692232000,-150.0,0.00013551,2]
[422204383,1778692232000,-2700.0,0.000136,4]
[422204363,1778692232000,-2000.0,0.00013082,2]
[422204388,1778692232000,-29999.99,0.00013699,2]
[422204389,1778692232000,-4100.0,0.000137,5]
[422204384,1778692232000,-2000.0,0.000136,4]
[422204391,1778692232000,-763.49,0.00013711,2]
[422204387,1778692232000,-7368.74,0.00013699,2]
[422204371,1778692232000,-305.7,0.00013446,2]
[422204361,1778692232000,-200.0,0.00013068,2]
[422204355,1778692232000,-255.0,0.00011737,2]
[422204358,1778692232000,-2346.19,0.00012819,2]
[422204340,1778692232000,-751.91634798,0.00010699,2]
[422204338,1778692232000,-391.38790315,0.00010599,2]
[422204339,1778692232000,-279.11830182,0.00010689,2]
[422204341,1778692232000,-150.0,0.00010699,2]
[422204343,1778692232000,-300.0,0.00010699,2]
[422204342,1778692232000,-300.0,0.00010699,2]
[422204344,1778692232000,-127.57744705,0.00010699,2]
[422204346,1778692232000,-130.60882565,0.00010699,2]
[422204347,1778692232000,-1069.39117435,0.00010699,2]
[422204356,1778692232000,-1680.0,0.00011769,2]
[422204345,1778692232000,-172.42255295,0.00010699,2]
[422204350,1778692232000,-531.42,0.000107,2]
[422204349,1778692232000,-1980.22406122,0.000107,2]
[422204352,1778692232000,-191.10699279,0.00011173,2]
[422204351,1778692232000,-150.0,0.00010806,2]
[422204354,1778692232000,-221.78984733,0.00011659,2]
[422204353,1778692232000,-161.52,0.00011273,2]
[422204359,1778692232000,-433.0,0.00012871,2]
[422204360,1778692232000,-2351.0,0.00012946,2]
[422204357,1778692232000,-177.14,0.00012305,2]
[422204348,1778692232000,-37589.88232935,0.000107,2]
[422204393,1778692232000,-186.4,0.00013711,2]
[422204409,1778692232000,-166.66,0.00013978,2]
[422204392,1778692232000,-186.4,0.00013711,2]
[422204423,1778692232000,-2000.0,0.00014295,2]
[422204420,1778692232000,-4768.41011602,0.00014295,2]
[422204419,1778692232000,-432.79016444,0.00014295,2]
[422204424,1778692232000,-2714.221,0.00014295,2]
[422204421,1778692232000,-4142.38061397,0.00014295,2]
[422204418,1778692232000,-11382.142277,0.00014262,2]
[422204425,1778692232000,-6793.3795,0.00014295,2]
[422204427,1778692232000,-5000.0,0.00014295,2]
[422204426,1778692232000,-1660.457,0.00014295,2]
[422204428,1778692232000,-994.76743646,0.00014296,2]
[422204429,1778692232000,-461.25859876,0.00014296,2]
[422204431,1778692232000,-14988.34143179,0.00014296,2]
[422204430,1778692232000,-263.40146376,0.00014296,2]
[422204386,1778692232000,-200.0,0.00013699,2]
[422204434,1778692232000,-2333.89574728,0.00014356,2]
[422204432,1778692232000,-350.0,0.00014313,2]
[422204435,1778692232000,-1343.20083725,0.00014356,2]
[422204437,1778692232000,-500.0,0.00014359,2]
[422204436,1778692232000,-946.31341547,0.00014356,2]
[422204438,1778692232000,-500.0,0.00014359,2]
[422204439,1778692232000,-307.58658452,0.00014359,2]
[422204422,1778692232000,-3826.7364,0.00014295,2]
[422204417,1778692232000,-166.66,0.00014257,2]
[422204433,1778692232000,-11382.14227698,0.00014333,2]
[422204415,1778692232000,-150.0,0.00014237,2]
[422204416,1778692232000,-3292.0,0.0001424,2]
[422204394,1778692232000,-186.4,0.00013711,2]
[422204406,1778692232000,-177.14,0.0001391,2]
[422204396,1778692232000,-349.19154398,0.000138,2]
[422204395,1778692232000,-305.7,0.00013782,2]
[422204403,1778692232000,-6900.0,0.000139,5]
[422204402,1778692232000,-186.4,0.000139,5]
[422204405,1778692232000,-500.0,0.000139,5]
[422204399,1778692232000,-4000.0,0.000138,5]
[422204404,1778692232000,-5000.0,0.000139,5]
[422204397,1778692232000,-836.07435602,0.000138,2]
[422204398,1778692232000,-5500.0,0.000138,5]
[422204414,1778692232000,-150.0,0.00014237,2]
[422204400,1778692232000,-166.66,0.00013838,2]
[422204412,1778692232000,-305.7,0.00014118,2]
[422204411,1778692232000,-166.66,0.00014117,2]
[422204410,1778692232000,-250.0,0.00014,2]
[422204413,1778692232000,-736.0,0.00014123,2]
[422204408,1778692232000,-974.38,0.00013966,2]
[422204407,1778692232000,-691.96,0.00013966,2]
[422204401,1778692232000,-186.4,0.000139,5]
[422204466,1778692238000,-518.40482234,0.00014359,2]
[422204465,1778692238000,-500.0,0.00014359,2]
[422204467,1778692238000,-500.0,0.00014359,2]
[422204469,1778692238000,-500.0,0.00014359,2]
[422204471,1778692238000,-500.0,0.00014359,2]
[422204470,1778692238000,-500.0,0.00014359,2]
[422204468,1778692238000,-500.0,0.00014359,2]
[422204472,1778692238000,-500.0,0.00014359,2]
[422204473,1778692238000,-107140.19795065,0.0001436,2]
[422204475,1778692238000,-4142.38061394,0.00014381,2]
[422204476,1778692238000,-473.15088506,0.00014385,2]
[422204478,1778692238000,-473.15088506,0.00014385,2]
[422204464,1778692238000,-500.0,0.00014359,2]
[422204462,1778692238000,-500.0,0.00014359,2]
[422204452,1778692238000,-500.0,0.00014359,2]
[422204461,1778692238000,-500.0,0.00014359,2]
[422204491,1778692238000,-500.0,0.00014394,2]
[422204447,1778692238000,-7238.6993961,0.00014296,2]
[422204449,1778692238000,-500.0,0.00014359,2]
[422204448,1778692238000,-192.41341548,0.00014359,2]
[422204450,1778692238000,-500.0,0.00014359,2]
[422204451,1778692238000,-500.0,0.00014359,2]
[422204463,1778692238000,-500.0,0.00014359,2]
[422204453,1778692238000,-500.0,0.00014359,2]
[422204454,1778692238000,-500.0,0.00014359,2]
[422204459,1778692238000,-500.0,0.00014359,2]
[422204457,1778692238000,-500.0,0.00014359,2]
[422204458,1778692238000,-500.0,0.00014359,2]
[422204460,1778692238000,-500.0,0.00014359,2]
[422204456,1778692238000,-500.0,0.00014359,2]
[422204455,1778692238000,-500.0,0.00014359,2]
[422204494,1778692238000,-500.0,0.00014394,2]
[422204474,1778692238000,-4768.41011598,0.00014362,2]
[422204481,1778692238000,-151.0,0.00014392,2]
[422204553,1778692238000,-500.0,0.00014394,2]
[422204545,1778692238000,-586.51333488,0.00014394,2]
[422204555,1778692238000,-505.20982406,0.00014394,2]
[422204547,1778692238000,-500.0,0.00014394,2]
[422204557,1778692238000,-500.0,0.00014394,2]
[422204559,1778692238000,-500.0,0.00014394,2]
[422204550,1778692238000,-500.0,0.00014394,2]
[422204563,1778692238000,-500.0,0.00014394,2]
[422204565,1778692238000,-500.0,0.00014394,2]
[422204576,1778692238000,-192.0106329,0.00014394,2]
[422204573,1778692238000,-500.0,0.00014394,2]
[422204569,1778692238000,-500.0,0.00014394,2]
[422204561,1778692238000,-526.33982411,0.00014394,2]
[422204485,1778692238000,-500.0,0.00014394,2]
[422204571,1778692238000,-500.0,0.00014394,2]
[422204541,1778692238000,-500.0,0.00014394,2]
[422204567,1778692238000,-500.0,0.00014394,2]
[422204533,1778692238000,-500.0,0.00014394,2]
[422204488,1778692238000,-500.0,0.00014394,2]
[422204538,1778692238000,-500.0,0.00014394,2]
[422204497,1778692238000,-500.0,0.00014394,2]
[422204511,1778692238000,-500.0,0.00014394,2]
[422204514,1778692238000,-500.0,0.00014394,2]
[422204503,1778692238000,-500.0,0.00014394,2]
[422204506,1778692238000,-500.0,0.00014394,2]
[422204500,1778692238000,-306.6696981,0.00014394,2]
[422204517,1778692238000,-500.0,0.00014394,2]
[422204520,1778692238000,-500.0,0.00014394,2]
[422204530,1778692238000,-500.0,0.00014394,2]
[422204524,1778692238000,-500.0,0.00014394,2]
[422204536,1778692238000,-500.0,0.00014394,2]
[422204508,1778692238000,-500.0,0.00014394,2]
[422204527,1778692238000,-500.0,0.00014394,2]
[422204617,1778692239000,-11382.14227698,0.00014404,2]
[422204613,1778692239000,-432.79016444,0.00014396,2]
[422204615,1778692239000,-25860.8335,0.000144,2]
[422204616,1778692239000,-2000.0,0.000144,2]
[422204612,1778692239000,-2085273.1798,0.00014395,2]
[422204611,1778692239000,-1500000.0,0.00014395,2]
[422204610,1778692239000,-2292.0,0.00014395,5]
[422204607,1778692239000,-500.0,0.00014394,2]
[422204619,1778692239000,-7238.69939609,0.00014417,2]
[422204609,1778692239000,-150.0,0.00014395,2]
[422204614,1778692239000,-166.66,0.00014396,2]
[422204621,1778692239000,-4768.41011598,0.00014429,2]
[422204627,1778692239000,-3007.66990209,0.00014471,2]
[422204623,1778692239000,-305.7,0.00014454,2]
[422204618,1778692239000,-532.01436814,0.00014412,3]
[422204620,1778692239000,-165.269112,0.00014423,2]
[422204635,1778692239000,-271.89347722,0.00014495,2]
[422204624,1778692239000,-4142.38061394,0.00014468,2]
[422204630,1778692239000,-11382.14227698,0.00014475,2]
[422204628,1778692239000,-150.60061714,0.00014471,2]
[422204629,1778692239000,-1872.07836152,0.00014471,2]
[422204632,1778692239000,-280.62,0.00014476,2]
[422204626,1778692239000,-500.0,0.00014471,2]
[422204608,1778692239000,-180.60312873,0.00014394,2]
[422204622,1778692239000,-150.0,0.00014444,2]
[422204603,1778692239000,-500.0,0.00014394,2]
[422204590,1778692239000,-500.0,0.00014394,2]
[422204604,1778692239000,-476.97838686,0.00014394,2]
[422204578,1778692239000,-500.0,0.00014394,2]
[422204581,1778692239000,-500.0,0.00014394,2]
[422204579,1778692239000,-500.0,0.00014394,2]
[422204585,1778692239000,-500.0,0.00014394,2]
[422204582,1778692239000,-500.0,0.00014394,2]
[422204584,1778692239000,-500.0,0.00014394,2]
[422204583,1778692239000,-500.0,0.00014394,2]
[422204586,1778692239000,-500.0,0.00014394,2]
[422204588,1778692239000,-500.0,0.00014394,2]
[422204587,1778692239000,-500.0,0.00014394,2]
[422204589,1778692239000,-500.0,0.00014394,2]
[422204634,1778692239000,-133475.613028,0.00014495,2]
[422204591,1778692239000,-277.6,0.00014394,2]
[422204593,1778692239000,-500.0,0.00014394,2]
[422204601,1778692239000,-500.0,0.00014394,2]
[422204594,1778692239000,-500.0,0.00014394,2]
[422204592,1778692239000,-500.0,0.00014394,2]
[422204595,1778692239000,-500.0,0.00014394,2]
[422204599,1778692239000,-500.0,0.00014394,2]
[422204596,1778692239000,-500.0,0.00014394,2]
[422204598,1778692239000,-500.0,0.00014394,2]
[422204600,1778692239000,-500.0,0.00014394,2]
[422204597,1778692239000,-160.59133501,0.00014394,2]
[422204602,1778692239000,-500.0,0.00014394,2]
[422204605,1778692239000,-239.00306293,0.00014394,2]
[422204606,1778692239000,-500.0,0.00014394,2]
[422204631,1778692239000,-342.97,0.00014476,2]
[422204625,1778692239000,-542.23182778,0.00014471,2]
[422204636,1778692239000,-46299.5470775,0.00014495,2]
[422204676,1778692239000,-560.0,0.00014556,2]
[422204677,1778692239000,-500.0,0.00014556,2]
[422204678,1778692239000,-560.0,0.00014556,2]
[422204673,1778692239000,-560.0,0.00014556,2]
[422204672,1778692239000,-560.0,0.00014556,2]
[422204671,1778692239000,-560.0,0.00014556,2]
[422204670,1778692239000,-560.0,0.00014556,2]
[422204681,1778692239000,-500.0,0.00014556,2]
[422204680,1778692239000,-560.0,0.00014556,2]
[422204684,1778692239000,-560.0,0.00014556,2]
[422204687,1778692239000,-286.77513069,0.00014556,2]
[422204686,1778692239000,-500.0,0.00014556,2]
[422204683,1778692239000,-500.0,0.00014556,2]
[422204685,1778692239000,-198.49447222,0.00014556,2]
[422204688,1778692239000,-560.0,0.00014556,2]
[422204682,1778692239000,-560.0,0.00014556,2]
[422204690,1778692239000,-560.0,0.00014556,2]
[422204689,1778692239000,-500.0,0.00014556,2]
[422204691,1778692239000,-500.0,0.00014556,2]
[422204692,1778692239000,-500.0,0.00014556,2]
[422204693,1778692239000,-560.0,0.00014556,2]
[422204694,1778692239000,-500.0,0.00014556,2]
[422204696,1778692239000,-560.0,0.00014556,2]
[422204695,1778692239000,-500.0,0.00014556,2]
[422204633,1778692239000,-330.0,0.00014493,3]
[422204675,1778692239000,-560.0,0.00014556,2]
[422204667,1778692239000,-560.0,0.00014556,2]
[422204697,1778692239000,-150.0,0.00014556,2]
[422204674,1778692239000,-560.0,0.00014556,2]
[422204679,1778692239000,-500.0,0.00014556,2]
[422204643,1778692239000,-432.79016444,0.00014497,2]
[422204640,1778692239000,-2533.4324001,0.00014495,2]
[422204638,1778692239000,-32629.3661,0.00014495,2]
[422204647,1778692239000,-500.0,0.00014499,2]
[422204648,1778692239000,-500.0,0.00014499,2]
[422204639,1778692239000,-633.2048506,0.00014495,2]
[422204644,1778692239000,-4768.41011598,0.00014497,2]
[422204645,1778692239000,-151.0,0.00014497,2]
[422204642,1778692239000,-2083.6541804,0.00014495,2]
[422204641,1778692239000,-277507.8526575,0.00014495,2]
[422204646,1778692239000,-501.26891246,0.00014499,2]
[422204650,1778692239000,-500.0,0.00014499,2]
[422204637,1778692239000,-85573.4390583,0.00014495,2]
[422204651,1778692239000,-500.0,0.00014499,2]
[422204661,1778692239000,-11382.14227698,0.00014546,2]
[422204666,1778692239000,-4142.38061394,0.00014554,2]
[422204663,1778692239000,-167.75184013,0.0001455,7]
[422204659,1778692239000,-7238.69939609,0.00014538,2]
[422204655,1778692239000,-446.6236523,0.00014499,2]
[422204658,1778692239000,-446.53624138,0.0001451,2]
[422204652,1778692239000,-500.0,0.00014499,2]
[422204653,1778692239000,-500.0,0.00014499,2]
[422204649,1778692239000,-500.0,0.00014499,2]
[422204656,1778692239000,-151.0,0.000145,2]
[422204654,1778692239000,-500.0,0.00014499,2]
[422204657,1778692239000,-232.7694701,0.000145,2]
[422204738,1778692240000,-432.79016444,0.00014598,2]
[422204742,1778692240000,-14988.34143177,0.00014598,2]
[422204740,1778692240000,-461.25859874,0.00014598,2]
[422204736,1778692240000,-4768.41011598,0.00014564,2]
[422204734,1778692240000,-213.01114122,0.00014556,2]
[422204739,1778692240000,-994.76743645,0.00014598,2]
[422204735,1778692240000,-150.0,0.00014556,2]
[422204729,1778692240000,-560.0,0.00014556,2]
[422204732,1778692240000,-500.0,0.00014556,2]
[422204737,1778692240000,-152.0,0.00014566,7]
[422204743,1778692240000,-151.0,0.000146,2]
[422204747,1778692240000,-249.141518,0.000146,2]
[422204751,1778692240000,-1000.0,0.000146,5]
[422204741,1778692240000,-263.40146376,0.00014598,2]
[422204745,1778692240000,-172.862875,0.000146,2]
[422204750,1778692240000,-1300.0,0.000146,5]
[422204746,1778692240000,-249.141518,0.000146,2]
[422204749,1778692240000,-249.141518,0.000146,2]
[422204748,1778692240000,-249.141518,0.000146,2]
[422204752,1778692240000,-166.63,0.00014609,2]
[422204761,1778692240000,-2153.324046,0.00014658,2]
[422204755,1778692240000,-789.4,0.00014631,2]
[422204756,1778692240000,-4768.41011598,0.00014631,2]
[422204731,1778692240000,-500.0,0.00014556,2]
[422204744,1778692240000,-151.0,0.000146,2]
[422204733,1778692240000,-500.0,0.00014556,2]
[422204717,1778692240000,-500.0,0.00014556,2]
[422204727,1778692240000,-560.0,0.00014556,2]
[422204759,1778692240000,-2153.324046,0.00014658,2]
[422204698,1778692240000,-325.89348617,0.00014556,2]
[422204702,1778692240000,-273.72753334,0.00014556,2]
[422204701,1778692240000,-500.0,0.00014556,2]
[422204700,1778692240000,-150.0,0.00014556,2]
[422204699,1778692240000,-500.0,0.00014556,2]
[422204704,1778692240000,-560.0,0.00014556,2]
[422204714,1778692240000,-500.0,0.00014556,2]
[422204710,1778692240000,-500.0,0.00014556,2]
[422204705,1778692240000,-500.0,0.00014556,2]
[422204706,1778692240000,-500.0,0.00014556,2]
[422204712,1778692240000,-500.0,0.00014556,2]
[422204707,1778692240000,-500.0,0.00014556,2]
[422204708,1778692240000,-500.0,0.00014556,2]
[422204709,1778692240000,-560.0,0.00014556,2]
[422204718,1778692240000,-500.0,0.00014556,2]
[422204719,1778692240000,-560.0,0.00014556,2]
[422204720,1778692240000,-500.0,0.00014556,2]
[422204721,1778692240000,-500.0,0.00014556,2]
[422204722,1778692240000,-500.0,0.00014556,2]
[422204723,1778692240000,-500.0,0.00014556,2]
[422204728,1778692240000,-560.0,0.00014556,2]
[422204725,1778692240000,-500.0,0.00014556,2]
[422204724,1778692240000,-560.0,0.00014556,2]
[422204726,1778692240000,-341.64803734,0.00014556,2]
[422204730,1778692240000,-566.77980264,0.00014556,2]
[422204754,1778692240000,-151.0,0.00014631,2]
[422204804,1778692240000,-206.95296,0.00014787,2]
[422204758,1778692240000,-2153.324046,0.00014658,2]
[422204787,1778692240000,-324.0,0.00014748,2]
[422204790,1778692240000,-324.0,0.00014758,2]
[422204788,1778692240000,-324.0,0.00014752,2]
[422204793,1778692240000,-324.0,0.00014777,2]
[422204794,1778692240000,-324.0,0.00014778,2]
[422204791,1778692240000,-11382.14227698,0.00014758,2]
[422204792,1778692240000,-4768.41011598,0.00014766,2]
[422204795,1778692240000,-7238.69939609,0.00014779,2]
[422204797,1778692240000,-324.0,0.00014783,2]
[422204798,1778692240000,-324.0,0.00014785,2]
[422204799,1778692240000,-1971.843,0.00014787,2]
[422204809,1778692240000,-432.79016444,0.00014799,2]
[422204800,1778692240000,-165.748,0.00014787,2]
[422204802,1778692240000,-206.95296,0.00014787,2]
[422204810,1778692240000,-1300.0,0.000148,5]
[422204803,1778692240000,-206.95296,0.00014787,2]
[422204816,1778692240000,-324.0,0.00014813,2]
[422204805,1778692240000,-206.95296,0.00014787,2]
[422204806,1778692240000,-305.7,0.0001479,2]
[422204812,1778692240000,-8610.54376167,0.00014802,2]
[422204813,1778692240000,-324.0,0.00014802,2]
[422204814,1778692240000,-4420.96519424,0.00014807,2]
[422204811,1778692240000,-1000.0,0.000148,5]
[422204815,1778692240000,-324.0,0.00014808,2]
[422204753,1778692240000,-11382.14227698,0.00014616,2]
[422204785,1778692240000,-324.0,0.00014735,2]
[422204789,1778692240000,-306.0,0.00014755,2]
[422204807,1778692240000,-324.0,0.00014795,2]
[422204786,1778692240000,-324.0,0.00014746,2]
[422204796,1778692240000,-324.0,0.00014782,2]
[422204757,1778692240000,-4142.38061394,0.00014641,2]
[422204760,1778692240000,-2153.324046,0.00014658,2]
[422204763,1778692240000,-151.0,0.00014658,2]
[422204762,1778692240000,-151.0,0.00014658,2]
[422204765,1778692240000,-810.960581,0.00014658,2]
[422204764,1778692240000,-151.0,0.00014658,2]
[422204766,1778692240000,-810.960581,0.00014658,2]
[422204769,1778692240000,-1142.714985,0.00014658,2]
[422204767,1778692240000,-810.960581,0.00014658,2]
[422204768,1778692240000,-810.960581,0.00014658,2]
[422204771,1778692240000,-1142.714985,0.00014658,2]
[422204773,1778692240000,-7238.69939609,0.00014658,2]
[422204772,1778692240000,-1142.714985,0.00014658,2]
[422204770,1778692240000,-1142.714985,0.00014658,2]
[422204783,1778692240000,-324.0,0.00014732,2]
[422204781,1778692240000,-4142.38061394,0.00014727,2]
[422204776,1778692240000,-4768.41011598,0.00014698,2]
[422204778,1778692240000,-1000.0,0.000147,5]
[422204784,1778692240000,-324.0,0.00014733,2]
[422204777,1778692240000,-1300.0,0.000147,5]
[422204780,1778692240000,-2000.0,0.00014717,2]
[422204775,1778692240000,-432.79016444,0.00014698,2]
[422204779,1778692240000,-276.81,0.00014706,2]
[422204774,1778692240000,-11382.14227698,0.00014687,2]
[422204782,1778692240000,-324.0,0.0001473,2]
[422204835,1778692241000,-324.0,0.00014878,2]
[422204837,1778692241000,-324.0,0.00014887,2]
[422204843,1778692241000,-4142.38061394,0.000149,2]
[422204840,1778692241000,-191.98255793,0.000149,2]
[422204844,1778692241000,-4768.41011598,0.000149,2]
[422204842,1778692241000,-1300.0,0.000149,5]
[422204846,1778692241000,-994.76743645,0.000149,2]
[422204848,1778692241000,-263.40146376,0.000149,2]
[422204850,1778692241000,-7238.69939609,0.000149,2]
[422204845,1778692241000,-1000.0,0.000149,5]
[422204856,1778692241000,-324.0,0.00014916,2]
[422204849,1778692241000,-11382.14227698,0.000149,2]
[422204855,1778692241000,-200.0,0.00014914,2]
[422204852,1778692241000,-789.4,0.00014905,2]
[422204851,1778692241000,-324.0,0.00014904,2]
[422204839,1778692241000,-191.98255793,0.000149,2]
[422204853,1778692241000,-324.0,0.00014911,2]
[422204847,1778692241000,-461.25859874,0.000149,2]
[422204838,1778692241000,-324.0,0.00014897,2]
[422204823,1778692241000,-669.03649,0.0001485,2]
[422204836,1778692241000,-324.0,0.00014884,2]
[422204854,1778692241000,-324.0,0.00014914,2]
[422204822,1778692241000,-4768.41011598,0.00014833,2]
[422204817,1778692241000,-4142.38061394,0.00014814,2]
[422204819,1778692241000,-11382.14227698,0.00014829,2]
[422204821,1778692241000,-324.0,0.00014831,2]
[422204818,1778692241000,-304.0,0.00014822,2]
[422204820,1778692241000,-324.0,0.0001483,2]
[422204833,1778692241000,-324.0,0.00014864,2]
[422204841,1778692241000,-432.79016444,0.000149,2]
[422204831,1778692241000,-324.0,0.00014859,2]
[422204830,1778692241000,-324.0,0.00014858,2]
[422204824,1778692241000,-669.03649,0.0001485,2]
[422204826,1778692241000,-821.3035,0.0001485,2]
[422204828,1778692241000,-324.0,0.0001485,2]
[422204825,1778692241000,-669.03649,0.0001485,2]
[422204834,1778692241000,-324.0,0.00014869,2]
[422204832,1778692241000,-324.0,0.00014861,2]
[422204827,1778692241000,-324.0,0.0001485,2]
[422204829,1778692241000,-324.0,0.00014854,2]
[422204858,1778692241000,-324.0,0.00014927,2]
[422204884,1778692241000,-517.33826701,0.00014999,5]
[422204857,1778692241000,-324.0,0.0001492,2]
[422204883,1778692241000,-324.0,0.00014998,2]
[422204882,1778692241000,-151.0,0.00014997,2]
[422204885,1778692241000,-151.0,0.00014999,2]
[422204887,1778692241000,-151.0,0.00014999,2]
[422204886,1778692241000,-151.0,0.00014999,2]
[422204888,1778692241000,-151.0,0.00014999,2]
[422204891,1778692241000,-300.0,0.00014999,2]
[422204889,1778692241000,-150.0,0.00014999,2]
[422204881,1778692241000,-324.0,0.00014994,2]
[422204890,1778692241000,-300.0,0.00014999,2]
[422204900,1778692241000,-1295856.04626669,0.00015,2]
[422204899,1778692241000,-151.0,0.00015,2]
[422204892,1778692241000,-300.0,0.00014999,2]
[422204896,1778692241000,-393.25,0.00015,2]
[422204895,1778692241000,-4507970.71477259,0.00015,2]
[422204894,1778692241000,-300.0,0.00014999,2]
[422204898,1778692241000,-151.0,0.00015,2]
[422204897,1778692241000,-3098919.05673039,0.00015,2]
[422204893,1778692241000,-300.0,0.00014999,2]
[422204868,1778692241000,-324.0,0.00014947,2]
[422204875,1778692241000,-175.44443978,0.00014986,2]
[422204876,1778692241000,-151.0,0.00014989,2]
[422204860,1778692241000,-1516.0,0.00014935,5]
[422204859,1778692241000,-1897.0,0.00014935,5]
[422204861,1778692241000,-324.0,0.0001494,2]
[422204862,1778692241000,-269.82628287,0.00014944,2]
[422204864,1778692241000,-211.76928359,0.00014945,2]
[422204866,1778692241000,-240.75410528,0.00014945,2]
[422204867,1778692241000,-248.04968422,0.00014945,2]
[422204865,1778692241000,-172.83522921,0.00014945,2]